bitfinex/quotes_ETHUSD_20240703
["timestamp","ask_amount","ask_price","bid_price","bid_amount"]
[1720010891603,6.4403,3288.6,3286.9,3.2432]
[1720010891803,0.0483099,3288.5,3287.1,8.80817]
[1720010892031,3.0,3288.9,3287.1,2.561]
[1720010892210,3.0,3288.4,3286.9,3.2432]
[1720010892535,6.3867,3288.4,3286.9,3.2432]
[1720010892697,0.04859448,3288.3,3286.9,3.2432]
[1720010893448,0.52707815,3288.2,3286.9,3.2432]
[1720010893597,0.04864396,3288.1,3286.9,3.2432]
[1720010893795,6.3867,3288.4,3287.0,0.32432]
[1720010894021,4.12571069,3288.3,3287.0,0.32432]
[1720010894230,3.59864396,3288.3,3287.0,0.32432]
[1720010894529,3.04864396,3288.3,3287.0,2.94616443]
[1720010894740,0.04864396,3288.3,3287.0,2.88532]
[1720010894897,0.04864396,3288.3,3287.1,0.612852]
[1720010895093,3.0,3288.7,3287.1,0.612852]
[1720010895409,0.52701179,3288.6,3287.1,0.612852]
[1720010895606,0.57564338,3288.5,3287.1,0.612852]
[1720010895924,0.04863159,3288.5,3287.1,0.612852]
[1720010896330,3.2304,3288.3,3286.3,4.0668]
[1720010896495,4.07708876,3288.2,3286.3,4.0668]
[1720010896697,3.0,3287.9,3286.3,4.0668]
[1720010897002,7.53648876,3287.8,3286.3,4.0668]
[1720010897207,0.57572035,3287.7,3286.3,4.0668]
[1720010897422,1.07708876,3287.6,3286.3,4.0668]
[1720010897621,0.55,3287.6,3286.3,4.0668]
[1720010897942,0.04863159,3287.5,3286.3,4.0668]
[1720010898096,0.04863159,3287.5,3286.3,0.85]
[1720010898448,0.52720481,3287.4,3286.3,0.85]
[1720010898645,1.07720481,3287.3,3286.3,0.85]
[1720010898938,0.04863159,3287.2,3286.3,0.85]
[1720010899245,3.5059,3287.0,3286.3,0.85]
[1720010899401,3.0,3286.9,3286.3,0.85]
[1720010899801,0.04863159,3286.8,3286.3,0.85]
[1720010901640,3.0,3287.0,3286.3,0.85]
[1720010901996,0.04817376,3286.9,3286.3,0.85]
[1720010902235,0.04817376,3286.9,3286.4,0.06086357]
[1720010902543,3.0,3287.8,3286.5,0.43113636]
[1720010902737,0.52714117,3287.7,3286.3,4.2505]
[1720010902938,0.04654231,3287.7,3286.3,4.2505]
[1720010903276,0.52716109,3287.6,3286.3,4.2505]
[1720010903481,0.52716109,3287.6,3286.3,0.85]
[1720010903482,0.52716109,3287.5,3286.3,0.85]
[1720010903623,3.52716109,3287.5,3286.3,0.85]
[1720010903830,0.5737034,3287.4,3286.3,0.85]
[1720010904068,0.52716109,3287.3,3286.3,0.85]
[1720010904276,0.04654231,3287.4,3286.3,0.85]
[1720010904474,0.52720981,3287.3,3286.3,0.85]
[1720010904775,3.83990981,3287.2,3286.3,0.85]
[1720010905068,3.0,3287.1,3286.3,0.85]
[1720010905269,0.5272396,3287.0,3286.3,0.85]
[1720010905480,3.04654231,3287.1,3286.3,0.85]
[1720010905481,0.52724746,3286.9,3286.3,0.85]
[1720010905647,0.04654231,3286.9,3286.3,0.85]
[1720010905843,3.0,3287.1,3286.3,0.85]
[1720010906161,3.0,3286.8,3286.3,0.85]
[1720010906361,3.4727,3286.6,3286.3,0.85]
[1720010906568,0.52724973,3286.5,3286.3,0.85]
[1720010906856,3.57379204,3286.5,3286.3,0.85]
[1720010907087,3.52724973,3286.4,3286.3,0.85]
[1720010907239,7.07724973,3286.4,3286.3,0.85]
[1720010907735,6.57379204,3286.4,3286.3,0.85]
[1720010908234,7.12379204,3286.4,3286.3,0.85]
[1720010908439,6.59654231,3286.4,3286.3,0.85]
[1720010908635,7.12395948,3286.4,3286.3,0.85]
[1720010908880,7.12395948,3286.4,3286.3,0.57511407]
[1720010909241,3.0,3284.9,3283.3,1.88707867]
[1720010909481,3.0,3284.9,3282.6,0.01286178]
[1720010909482,3.0,3284.9,3282.4,1.37690008]
[1720010909483,0.12,3284.3,3282.4,1.37690008]
[1720010909705,0.12,3284.3,3280.9,1.26901086]
[1720010909706,3.5146568,3283.5,3280.9,1.26901086]
[1720010909879,3.5146568,3283.5,3280.7,1.61772375]
[1720010909880,3.422,3281.4,3280.7,0.03139832]
[1720010910058,2.828,3280.8,3280.7,0.33264855]
[1720010910264,3.5057,3281.8,3280.7,0.03139832]
[1720010910447,0.91529001,3281.3,3280.7,0.03139832]
[1720010910645,1.0,3283.8,3280.8,3.449]
[1720010910646,0.04494267,3281.2,3280.8,3.449]
[1720010910870,3.9094,3283.8,3280.9,1.75892982]
[1720010911219,1.828,3284.5,3282.6,3.422]
[1720010911220,1.44481967,3282.8,3282.6,3.422]
[1720010911428,1.44481967,3282.8,3281.9,3.449]
[1720010911429,0.96326194,3283.3,3282.8,3.04613]
[1720010911600,0.96326194,3283.3,3281.9,4.449]
[1720010911601,1.0,3282.8,3280.7,0.03139832]
[1720010911764,1.87892021,3283.2,3282.4,3.4382]
[1720010911965,1.0,3282.8,3280.9,3.4382]
[1720010912196,1.0,3282.4,3281.0,0.06093175]
[1720010912414,1.0,3283.9,3282.0,3.422]
[1720010912415,1.0,3283.4,3282.0,3.422]
[1720010912596,1.0,3283.4,3282.1,3.49911811]
[1720010912764,1.0,3282.3,3281.3,3.4382]
[1720010912968,1.0,3283.9,3281.4,0.06094171]
[1720010912969,1.0,3282.8,3281.4,0.06094171]
[1720010913196,3.0,3283.4,3281.3,3.4382]
[1720010913197,1.0,3283.4,3281.8,3.04701]
[1720010913419,1.0,3283.6,3282.1,3.422]
[1720010913715,1.0,3283.6,3281.8,3.04704]
[1720010913716,1.0,3283.2,3281.6,3.04725]
[1720010914221,3.0,3284.4,3281.3,4.70721086]
[1720010914222,4.0,3284.7,3282.3,3.0466]
[1720010914518,2.66272318,3286.9,3283.4,3.422]
[1720010914519,1.0,3284.5,3283.4,3.422]
[1720010914728,1.0,3284.3,3283.5,0.0609025]
[1720010914884,1.0,3285.1,3283.5,0.0609025]
[1720010914885,1.0,3284.5,3283.5,0.0609025]
[1720010915086,1.0,3285.2,3283.9,3.422]
[1720010915288,1.0,3285.2,3284.0,0.40308862]
[1720010915492,1.0,3285.2,3284.0,3.57908862]
[1720010915904,3.0,3285.9,3284.1,0.06088452]
[1720010915905,1.0,3284.8,3284.1,0.06088452]
[1720010916120,1.0,3284.8,3283.3,3.176]
[1720010916412,1.0,3284.5,3283.3,3.176]
[1720010916912,2.0,3284.5,3283.3,3.176]
[1720010917211,1.0,3284.8,3283.4,0.06089918]
[1720010917428,1.0,3285.0,3283.5,0.66588992]
[1720010917429,2.0,3285.0,3283.5,0.66588992]
[1720010917711,2.0,3285.0,3283.6,0.55]
[1720010917877,0.0384986,3284.9,3283.6,0.55]
[1720010918081,0.0384986,3284.9,3283.7,0.0608901]
[1720010918278,1.0,3284.8,3283.8,0.06089006]
[1720010918820,1.0,3284.8,3283.5,3.71140992]
[1720010918821,1.0,3284.5,3283.5,0.66588992]
[1720010918978,1.0,3284.5,3283.3,3.176]
[1720010919178,1.0,3284.3,3283.3,3.176]
[1720010919397,1.0,3284.3,3283.1,3.422]
[1720010919676,1.0,3283.9,3283.1,3.422]
[1720010919876,1.0,3283.9,3282.6,3.422]
[1720010920099,0.0384986,3283.8,3282.6,3.422]
[1720010920312,0.0384986,3283.8,3283.1,3.422]
[1720010920514,0.0384986,3283.8,3283.6,3.422]
[1720010920831,1.0,3284.6,3283.3,3.205]
[1720010921113,3.0,3285.2,3283.6,6.627]
[1720010921114,0.0384986,3284.5,3283.6,6.627]
[1720010921331,0.0384986,3284.5,3283.7,0.06089087]
[1720010921520,1.0,3284.8,3283.8,0.06089087]
[1720010921691,1.0,3284.5,3283.6,1.150054]
[1720010921880,1.0,3284.5,3283.7,0.06089885]
[1720010922111,1.0,3284.8,3283.4,5.033]
[1720010922311,0.0384986,3284.4,3283.6,3.205]
[1720010922511,1.0,3284.9,3283.7,0.0608909]
[1720010922742,1.0,3284.6,3283.8,0.32658909]
[1720010922942,1.0,3284.6,3283.4,3.205]
[1720010923144,0.04000854,3284.5,3283.4,3.205]
[1720010923360,0.2,3284.9,3283.2,0.304582]
[1720010923361,1.0,3284.1,3283.2,0.304582]
[1720010923548,1.0,3284.3,3282.9,3.04601]
[1720010923748,1.0,3284.8,3283.1,5.033]
[1720010923912,0.04001269,3284.2,3283.1,5.033]
[1720010924244,1.0,3284.8,3283.3,5.033]
[1720010924457,1.0,3284.8,3283.5,3.205]
[1720010924756,0.03992148,3284.7,3283.6,0.06089368]
[1720010925044,1.0,3284.4,3283.5,3.205]
[1720010925210,1.0,3284.4,3283.6,0.06089375]
[1720010925407,1.0,3284.8,3283.6,0.06089375]
[1720010925642,1.2,3284.8,3283.7,0.32658938]
[1720010925806,1.2,3284.8,3283.8,0.0608937]
[1720010926009,1.2,3284.8,3283.5,3.205]
[1720010926010,1.0,3284.4,3283.4,0.50938937]
[1720010926218,1.0,3284.4,3283.2,6.205]
[1720010926456,1.0,3284.2,3282.9,3.0]
[1720010926675,1.0,3284.2,3282.7,6.04623]
[1720010927149,1.0,3284.2,3283.0,8.07899]
[1720010927353,1.0,3284.6,3283.2,5.033]
[1720010927647,1.0,3284.6,3283.3,0.06089571]
[1720010928064,0.0399505,3284.5,3283.4,3.755]
[1720010928371,1.0,3284.3,3283.4,3.755]
[1720010928510,1.0,3284.3,3283.2,3.205]
[1720010928707,1.0,3284.3,3283.2,0.4012899]
[1720010928914,1.0,3284.3,3282.5,3.3306]
[1720010928915,1.0,3284.3,3283.0,3.04598]
[1720010929246,1.0,3284.3,3283.3,0.06090276]
[1720010929462,1.0,3284.3,3283.0,1.828]
[1720010929629,0.0399505,3284.2,3283.1,3.205]
[1720010929812,1.0,3284.3,3283.1,3.205]
[1720010930009,1.0,3284.1,3283.2,3.7083]
[1720010930312,1.0,3284.1,3283.0,1.828]
[1720010930313,1.0,3284.1,3282.8,1.828]
[1720010930560,1.0,3284.1,3283.0,3.205]
[1720010931217,1.0,3284.1,3283.1,3.755]
[1720010931419,1.0,3284.1,3282.6,6.0463]
[1720010931618,2.0,3284.1,3282.8,3.205]
[1720010931823,2.0,3284.1,3282.6,3.0]
[1720010931824,1.0,3283.9,3282.6,3.0]
[1720010932034,1.0,3283.7,3282.2,3.0]
[1720010932315,1.0,3283.7,3282.2,3.04665]
[1720010932548,1.0,3283.7,3282.4,4.87453]
[1720010932857,1.0,3283.5,3282.5,3.0]
[1720010933025,1.0,3283.5,3282.3,3.604665]
[1720010933230,6.0,3284.7,3282.4,3.10742168]
[1720010933231,0.0399505,3283.4,3282.4,3.10742168]
[1720010933425,1.0,3284.0,3282.4,3.10742168]
[1720010933631,1.0,3284.0,3282.4,4.93542168]
[1720010933923,0.0399505,3283.9,3282.5,3.205]
[1720010934125,0.0399505,3283.9,3282.7,3.205]
[1720010934343,1.0,3283.8,3282.8,3.71439095]
[1720010934815,1.0,3283.8,3282.9,0.06090607]
[1720010935215,3.9094,3284.2,3282.9,0.06090607]
[1720010935216,0.0399505,3283.7,3282.9,0.06090607]
[1720010935754,0.0399505,3283.6,3282.9,0.06090607]
[1720010936254,1.0,3283.8,3282.9,0.06090607]
[1720010936456,0.0399505,3283.5,3282.9,0.43843577]
[1720010936660,1.0,3283.8,3282.9,0.43843577]
[1720010936970,1.0,3284.0,3282.9,0.43843577]
[1720010937274,0.03982197,3283.7,3282.9,0.43843577]
[1720010937435,1.0,3284.0,3282.9,3.64343577]
[1720010937618,0.03982197,3283.6,3283.0,4.17028267]
[1720010937823,1.0,3284.0,3283.0,4.17028267]
[1720010938170,0.03982197,3283.9,3283.0,3.62028267]
[1720010938324,0.03982197,3283.9,3283.1,0.06090463]
[1720010938523,1.0,3284.0,3283.1,0.06090463]
[1720010938726,1.0,3284.3,3283.1,0.06090463]
[1720010939026,0.03982197,3283.9,3283.1,3.63402336]
[1720010939220,1.0,3284.3,3283.1,3.63402336]
[1720010939418,1.0,3284.4,3283.1,3.63402336]
[1720010939655,0.03982197,3284.2,3283.1,3.63402336]
[1720010939861,1.0,3284.4,3283.2,0.4049306]
[1720010940184,1.5276128,3284.3,3283.3,0.06090051]
[1720010940317,1.0,3284.1,3283.3,0.06090051]
[1720010940676,0.03982197,3284.3,3283.3,0.06090051]
[1720010940830,3.9094,3285.0,3283.7,8.455]
[1720010941075,1.52750536,3284.9,3283.9,3.205]
[1720010941307,0.52750536,3284.8,3284.0,7.58148776]
[1720010941510,1.0,3284.9,3284.1,0.75814878]
[1720010941815,1.0,3285.1,3284.1,0.75814878]
[1720010942105,0.52747246,3285.0,3284.0,3.205]
[1720010942314,1.56738149,3284.9,3283.8,3.205]
[1720010942609,0.52747246,3284.8,3283.9,9.06588591]
[1720010942824,0.52747246,3285.2,3283.9,12.11098591]
[1720010943106,0.52747246,3285.1,3284.5,3.205]
[1720010943305,0.52747246,3285.0,3284.6,0.06087577]
[1720010943622,3.9094,3286.1,3284.0,4.56059759]
[1720010943623,2.0,3285.6,3284.2,3.205]
[1720010943774,2.0,3285.6,3284.3,3.04478]
[1720010943775,0.52741643,3285.5,3284.3,3.04478]
[1720010943975,0.56732546,3285.5,3284.4,0.61087518]
[1720010944283,0.56732546,3285.5,3284.4,0.55]
[1720010944284,0.52740545,3285.4,3284.4,0.55]
[1720010944519,0.52740545,3285.3,3284.5,0.06087697]
[1720010944721,1.0,3285.7,3284.5,3.83026467]
[1720010945022,0.03990903,3285.2,3284.5,3.83026467]
[1720010945240,1.0,3285.9,3284.6,7.3858]
[1720010945435,0.52737422,3285.8,3284.7,3.04441]
[1720010945592,0.52737422,3285.8,3284.7,3.98395977]
[1720010945593,0.52732463,3285.7,3284.7,3.98395977]
[1720010945789,1.0,3285.2,3284.1,3.0]
[1720010946127,3.9094,3285.9,3284.6,3.04446]
[1720010946291,0.03990903,3285.1,3284.7,0.55]
[1720010946490,2.0,3286.1,3284.7,0.55]
[1720010946825,0.5672726,3286.0,3284.7,0.55]
[1720010946996,0.52736357,3285.9,3284.8,3.205]
[1720010947213,1.0,3285.6,3284.8,3.7633]
[1720010948045,1.0,3286.1,3284.9,0.0608706]
[1720010948046,2.0,3286.1,3284.9,0.0608706]
[1720010948194,2.0,3286.1,3285.0,3.755]
[1720010948195,0.52732816,3286.0,3285.0,3.755]
[1720010948399,0.04101979,3286.0,3285.1,0.06086521]
[1720010948801,2.0,3286.3,3285.1,0.06086521]
[1720010949109,0.72731218,3286.2,3285.1,0.06086521]
[1720010949301,0.04101979,3286.1,3285.2,3.755]
[1720010949521,2.0,3286.7,3285.3,0.0608615]
[1720010949726,1.0,3286.5,3285.3,0.0608615]
[1720010949923,1.0,3286.5,3285.0,7.18772]
[1720010949924,1.0,3286.3,3285.0,4.1436]
[1720010950096,0.15272578,3286.2,3285.1,4.69436]
[1720010950326,1.0,3286.3,3285.2,0.06086356]
[1720010950643,0.04121448,3286.1,3285.3,3.205]
[1720010950828,1.0,3286.5,3285.4,0.06085937]
[1720010950996,1.0,3286.5,3285.5,3.58658594]
[1720010951196,0.04121448,3286.4,3285.5,5.41458594]
[1720010951435,1.0,3286.7,3285.7,3.205]
[1720010951622,0.0412766,3286.3,3285.7,3.205]
[1720010951829,1.0,3286.5,3285.7,3.205]
[1720010952142,1.0,3286.7,3285.8,0.06085386]
[1720010952528,1.0,3286.7,3285.7,4.05082559]
[1720010953309,1.0,3286.7,3285.8,0.06085229]
[1720010954868,1.0,3286.7,3285.3,3.59382]
[1720010954869,1.0,3286.0,3285.0,4.1436]
[1720010955147,1.0,3286.6,3285.2,3.10475992]
[1720010955362,1.0,3287.1,3286.0,6.627]
[1720010955542,1.0,3286.8,3285.5,3.422]
[1720010955841,1.0,3287.1,3285.4,4.5678]
[1720010955842,1.0,3286.4,3285.4,4.5678]
[1720010956047,4.2043,3287.0,3284.9,6.422]
[1720010956048,1.0,3286.2,3284.9,6.422]
[1720010956217,1.0,3285.8,3284.9,3.0]
[1720010956627,2.0,3285.8,3284.9,3.0]
[1720010956841,0.0412973,3285.7,3284.9,6.205]
[1720010957132,1.0,3286.0,3284.9,6.205]
[1720010957332,0.0412973,3285.9,3285.0,0.45092039]
[1720010958363,0.0412973,3285.9,3285.1,0.06086757]
[1720010959252,0.0412973,3285.9,3285.2,0.0608676]
[1720010959410,0.0412973,3285.9,3285.3,0.06086374]
[1720010959607,0.0412973,3285.9,3285.0,0.39005283]
[1720010959835,1.0,3285.8,3284.9,3.422]
[1720010960055,2.0,3286.0,3284.9,3.422]
[1720010960789,1.0,3285.8,3284.9,3.422]
[1720010961167,1.0,3286.4,3285.0,3.81587001]
[1720010961473,1.0,3286.2,3285.1,0.906587]
[1720010961782,1.0,3286.0,3285.0,3.422]
[1720010962270,1.0,3286.4,3285.1,0.06086499]
[1720010962271,1.0,3286.3,3285.1,0.06086499]
[1720010962570,1.0,3286.4,3285.3,6.24885]
[1720010962571,0.03998599,3286.2,3285.3,6.24885]
[1720010962782,0.03998599,3286.2,3285.4,0.06086003]
[1720010962970,1.0,3286.3,3285.4,0.06086003]
[1720010963142,1.0,3286.3,3285.4,0.44244603]
[1720010963341,0.03998599,3286.2,3285.4,0.44244603]
[1720010963832,3.9094,3286.5,3285.6,6.24857]
[1720010964031,0.03998599,3286.1,3285.7,3.81585365]
[1720010964232,2.0,3287.0,3285.8,0.06085303]
[1720010964689,0.03998599,3286.9,3286.2,3.422]
[1720010964984,1.0,3287.2,3286.3,0.40304375]
[1720010965137,1.0,3287.2,3286.3,3.60804375]
[1720010965334,3.9094,3287.8,3286.3,6.65091375]
[1720010965335,0.03998599,3287.1,3286.3,6.65091375]
[1720010965545,0.03998599,3287.1,3286.4,3.205]
[1720010965772,1.0,3287.4,3286.4,3.205]
[1720010965773,1.0,3287.4,3286.5,0.06084171]
[1720010966011,1.0,3287.4,3286.5,0.72593288]
[1720010966142,0.03998599,3287.3,3286.5,0.72593288]
[1720010966337,0.03998599,3287.3,3286.7,3.422]
[1720010966575,0.03998599,3287.3,3286.8,0.06083861]
[1720010966752,4.9094,3287.8,3286.8,0.06083861]
[1720010966753,1.0,3287.4,3286.8,0.06083861]
[1720010966955,0.03998599,3287.2,3286.8,0.06083861]
[1720010967164,3.9094,3287.8,3286.8,6.63488247]
[1720010967382,1.0,3288.8,3286.8,3.59242247]
[1720010967581,1.0,3288.8,3287.4,3.04188]
[1720010967582,0.03998599,3287.7,3287.4,3.04188]
[1720010967765,2.0,3288.6,3287.2,8.07504]
[1720010968093,2.0,3288.6,3287.1,3.04217]
[1720010968094,1.0,3288.0,3287.3,1.111721]
[1720010968302,1.0,3288.0,3287.1,3.205]
[1720010968596,1.0,3288.4,3287.2,0.06082783]
[1720010968597,1.0,3288.2,3287.2,0.06082783]
[1720010968802,1.0,3288.0,3287.3,0.06082779]
[1720010969164,2.0,3288.0,3286.7,6.2533]
[1720010969389,1.0,3288.0,3286.8,0.55]
[1720010969710,0.03998599,3287.9,3286.9,1.88883191]
[1720010969873,1.0,3288.2,3287.0,0.55]
[1720010970062,1.0,3288.2,3287.1,6.30801568]
[1720010970265,1.0,3289.0,3287.5,3.04179]
[1720010970489,6.9094,3289.7,3288.0,3.205]
[1720010970490,0.03998599,3288.9,3288.0,3.205]
[1720010970793,1.0,3288.9,3288.1,0.3205]
[1720010970970,1.0,3288.9,3288.0,3.205]
[1720010971478,1.0,3288.9,3287.9,3.205]
[1720010971687,1.0,3288.9,3288.1,3.205]
[1720010972398,1.0,3288.9,3287.7,6.46362]
[1720010972399,2.0,3289.4,3287.7,3.422]
[1720010972609,1.0,3288.7,3287.6,4.5849]
[1720010972757,1.0,3289.0,3287.6,7.62656]
[1720010972960,2.0,3289.0,3287.6,7.62656]
[1720010973183,0.04117073,3288.9,3287.6,7.62656]
[1720010973407,1.0,3288.6,3287.3,3.04199]
[1720010973569,5.2108,3288.8,3287.4,5.033]
[1720010973903,0.5663678,3288.7,3287.6,3.205]
[1720010974260,0.5663678,3288.7,3287.7,0.06081642]
[1720010974459,1.0,3289.1,3288.2,3.205]
[1720010974680,3.0,3289.4,3288.3,0.06080581]
[1720010974681,0.0423927,3289.0,3288.3,0.06080581]
[1720010975089,0.0423927,3288.9,3288.0,3.205]
[1720010975275,1.0,3289.1,3288.0,3.205]
[1720010975577,0.2,3289.0,3288.1,0.06080959]
[1720010975796,1.0,3289.3,3288.3,3.205]
[1720010976017,1.0,3289.3,3288.5,3.205]
[1720010976018,0.04248374,3288.9,3288.5,3.205]
[1720010976202,1.0,3289.3,3288.6,0.06080204]
[1720010976373,8.2487,3290.1,3288.6,0.06080204]
[1720010976374,5.3393,3290.1,3288.7,5.033]
[1720010976577,5.3393,3290.1,3288.8,3.205]
[1720010976578,1.0,3289.5,3288.8,3.205]
[1720010976976,0.53393,3290.0,3288.8,3.205]
[1720010977310,0.53393,3290.0,3289.0,3.205]
[1720010977607,1.0,3290.2,3289.0,5.033]
[1720010977815,1.0,3290.2,3289.0,3.205]
[1720010977983,1.0,3289.6,3289.0,3.205]
[1720010978407,1.0,3289.9,3288.5,3.04083]
[1720010978569,1.0,3289.9,3288.6,0.55]
[1720010978770,1.0,3289.9,3288.7,3.205]
[1720010978972,1.0,3289.9,3288.3,3.04104]
[1720010978973,1.0,3289.6,3288.2,4.3048]
[1720010979206,1.0,3289.4,3288.3,3.1017994]
[1720010979607,1.0,3289.4,3288.4,1.828]
[1720010979810,1.0,3289.4,3288.5,0.06079974]
[1720010979974,0.04248374,3289.3,3288.5,0.06079974]
[1720010980372,0.04248374,3289.3,3288.2,7.34592]
[1720010980373,1.0,3289.4,3287.7,3.04154]
[1720010980577,1.0,3288.9,3287.6,1.828]
[1720010980883,1.0,3288.9,3287.0,0.60312819]
[1720010980884,1.0,3288.1,3287.0,3.205]
[1720010981232,1.0,3288.1,3286.7,7.47]
[1720010981233,2.0,3287.8,3286.4,3.0428]
[1720010981515,1.0,3287.8,3286.5,0.30428]
[1720010981709,1.0,3287.6,3286.5,2.13228]
[1720010981928,1.0,3287.6,3286.6,3.205]
[1720010982300,2.0,3288.1,3286.7,0.06083577]
[1720010982495,2.0,3288.1,3286.5,0.30428]
[1720010982496,1.0,3287.9,3286.5,0.30428]
[1720010982718,1.0,3287.8,3286.5,2.13228]
[1720010982884,0.04248374,3287.7,3286.6,5.033]
[1720010983087,2.0,3288.1,3286.7,0.06083393]
[1720010983398,1.0,3288.4,3286.8,5.09383038]
[1720010983613,1.0,3288.3,3287.0,5.033]
[1720010983936,1.0,3288.1,3287.1,0.06082599]
[1720010984433,1.0,3287.8,3286.7,3.205]
[1720010984593,1.0,3287.8,3286.8,0.55]
[1720010985019,1.0,3287.8,3286.8,3.755]
[1720010985330,1.0,3287.8,3286.9,0.06083146]
[1720010985639,1.0,3287.6,3286.8,3.205]
[1720010985939,1.0,3287.4,3286.8,3.205]
[1720010986228,1.0,3287.4,3286.2,7.466]
[1720010986229,1.0,3287.1,3286.2,7.466]
[1720010986393,1.0,3287.1,3285.8,3.422]
[1720010986591,4.3735,3287.7,3285.6,4.2243]
[1720010986592,1.0,3287.3,3285.6,4.2243]
[1720010986817,1.0,3287.0,3285.7,3.83112096]
[1720010987016,0.04178004,3287.2,3286.0,3.422]
[1720010987241,1.0,3287.7,3286.1,8.13690811]
[1720010987390,0.04178004,3287.1,3286.1,8.47910811]
[1720010987595,1.0,3287.7,3286.1,8.47910811]
[1720010987841,1.0,3287.6,3286.1,8.47910811]
[1720010988048,1.04178004,3287.6,3286.1,8.47910811]
[1720010988341,1.04178004,3287.6,3286.3,5.033]
[1720010988342,0.204178,3287.5,3286.3,5.033]
[1720010988494,0.204178,3287.5,3286.4,0.06083814]
[1720010988696,2.0,3287.2,3286.0,3.205]
[1720010989029,1.0,3287.2,3286.0,3.205]
[1720010989189,3.0,3287.8,3285.8,1.828]
[1720010989190,1.0,3287.0,3285.8,1.828]
[1720010989391,1.0,3287.0,3285.8,4.828]
[1720010989719,2.0,3287.0,3285.7,0.726794]
[1720010989902,1.0,3286.8,3285.6,4.2243]
[1720010990228,0.04152742,3286.7,3285.6,4.2243]
[1720010990415,0.04152742,3286.7,3285.7,4.87142]
[1720010990731,0.04152742,3286.7,3286.0,3.205]
[1720010990935,1.0,3287.0,3286.0,3.205]
[1720010991095,0.03971393,3286.9,3286.0,3.205]
[1720010991293,0.53465,3287.1,3286.0,3.205]
[1720010991640,0.03971393,3287.0,3286.1,0.06084635]
[1720010992036,6.9094,3287.9,3286.1,0.06084635]
[1720010992037,0.98971393,3287.6,3286.1,0.06084635]
[1720010992196,0.03839013,3286.9,3286.3,5.033]
[1720010992400,0.19897139,3287.5,3286.5,3.205]
[1720010992602,0.19897139,3287.5,3286.6,0.06083767]
[1720010992801,0.03848965,3287.4,3286.6,0.06083767]
[1720010993297,0.03848965,3287.4,3286.6,0.57022144]
[1720010993491,0.03848965,3287.4,3286.6,3.77522144]
[1720010993719,0.98971393,3287.7,3286.6,4.85858377]
[1720010993993,0.98971393,3287.7,3286.6,2.33738377]
[1720010994201,4.2032,3288.4,3286.2,0.50938464]
[1720010994202,1.0,3287.4,3286.2,0.50938464]
[1720010994395,0.98971393,3287.0,3286.0,3.0]
[1720010994595,0.98971393,3287.0,3286.1,0.06084625]
[1720010994906,0.98971393,3287.0,3286.0,3.205]
[1720010995229,0.98971393,3286.8,3286.0,3.205]
[1720010995795,0.03848135,3286.7,3286.0,3.205]
[1720010996239,0.98971393,3286.8,3286.0,3.205]
[1720010996533,0.03847306,3286.7,3286.0,3.205]
[1720010996736,0.98971393,3286.8,3286.0,3.205]
[1720010996888,0.03847306,3286.7,3286.0,3.205]
[1720010997097,0.98971393,3286.8,3286.0,3.205]
[1720010997308,0.03847306,3286.7,3286.0,3.205]
[1720010997636,1.0,3286.5,3285.4,3.205]
[1720010997837,3.0,3287.0,3284.9,4.3325]
[1720010997838,0.98971393,3286.0,3284.9,4.3325]
[1720010997998,1.0,3286.3,3285.0,0.43325]
[1720010998197,0.98971393,3286.0,3285.0,0.43325]
[1720010998625,0.98971393,3286.0,3285.0,3.63825]
[1720010999142,1.0,3286.5,3285.2,3.205]
[1720010999315,3.0,3287.5,3285.7,5.033]
[1720010999316,0.03814127,3286.4,3285.7,5.033]
[1720010999499,0.03814127,3286.4,3285.6,4.4784]
[1720010999500,0.98971393,3287.7,3286.3,5.033]
[1720010999701,0.03814127,3287.6,3286.4,0.06083656]
[1720010999931,0.98971393,3287.7,3286.6,3.205]
[1720011000137,0.98971393,3287.7,3286.7,0.06083657]
[1720011000352,3.9094,3288.5,3286.8,0.06083227]
[1720011000353,1.0,3288.1,3286.8,0.06083227]
[1720011000666,0.03814127,3288.0,3286.8,5.09383227]
[1720011000941,0.03814127,3288.0,3287.0,3.205]
[1720011001145,0.03814127,3288.0,3287.2,8.07507]
[1720011001347,0.98971393,3288.6,3287.4,3.205]
[1720011001647,0.03814127,3288.5,3287.5,0.06081994]
[1720011002523,4.1683,3289.0,3287.5,0.06081994]
[1720011002524,5.15801393,3289.0,3287.5,0.06081994]
[1720011002701,1.0,3289.2,3287.7,8.455]
[1720011002702,0.03814127,3288.9,3287.7,8.455]
[1720011002895,0.03814127,3288.9,3287.9,8.07442]
[1720011003152,0.03814127,3288.8,3288.0,3.10209555]
[1720011003352,1.0,3289.5,3288.1,5.033]
[1720011003646,0.98971393,3289.6,3288.2,3.10194492]
[1720011003805,0.03814127,3289.4,3288.3,5.0938026]
[1720011004005,0.98971393,3289.6,3288.3,5.0938026]
[1720011004006,0.98971393,3289.6,3288.3,5.033]
[1720011004223,0.03814127,3289.3,3288.3,5.033]
[1720011004434,1.98971393,3289.4,3288.3,5.033]
[1720011004943,0.03897014,3289.3,3288.4,0.0608054]
[1720011005111,0.03897014,3289.3,3288.3,8.07407]